bitfinex/quotes_ETHUSD_20251023
["timestamp","ask_amount","ask_price","bid_price","bid_amount"]
[1761179178119,2.68498461,3806.7,3805.9,0.4578]
[1761179178307,5.98701623,3806.6,3805.9,0.4578]
[1761179178506,1.5552,3806.5,3805.9,0.4578]
[1761179178707,4.18228936,3806.5,3805.9,0.4578]
[1761179178937,2.62716388,3806.4,3805.9,0.4578]
[1761179179241,3.36,3806.3,3805.9,0.4578]
[1761179179743,1.5552,3806.2,3805.9,0.002]
[1761179179950,2.62743037,3806.0,3805.9,0.002]
[1761179180168,7.54263037,3806.0,3805.9,0.002]
[1761179182329,7.64163037,3806.0,3805.9,0.002]
[1761179182954,7.54263037,3806.0,3805.9,0.002]
[1761179183154,8.92981499,3806.0,3805.9,0.002]
[1761179185729,8.92981499,3806.0,3805.9,0.4462]
[1761179186136,4.9152,3806.0,3805.9,0.4462]
[1761179186635,3.36,3806.0,3805.9,0.4462]
[1761179187488,3.36,3806.2,3805.9,0.4462]
[1761179187729,3.36,3806.2,3806.1,0.2343]
[1761179188015,3.36,3806.2,3806.1,0.3655]
[1761179188315,3.36,3806.2,3806.1,0.8097]
[1761179191008,3.36,3806.2,3805.9,0.002]
[1761179191514,2.62743037,3806.0,3805.9,0.002]
[1761179192009,1.9925,3807.2,3805.9,0.4373]
[1761179192324,1.5552,3806.5,3806.0,0.2219]
[1761179192521,1.5552,3806.3,3806.0,0.2219]
[1761179192693,1.5552,3806.3,3806.1,0.4353]
[1761179193004,1.5552,3806.3,3806.0,0.2219]
[1761179193005,4.18244707,3806.3,3806.0,0.2219]
[1761179193210,4.18244707,3806.3,3806.0,0.6572]
[1761179194408,2.62729231,3806.2,3805.9,0.002]
[1761179194705,2.62743037,3806.0,3805.9,0.002]
[1761179195389,2.62743037,3806.0,3805.9,0.4373]
[1761179195918,2.62743037,3806.0,3805.9,0.002]
[1761179196122,3.74600797,3806.0,3805.9,0.002]
[1761179196895,0.001,3806.1,3805.9,0.4373]
[1761179200622,0.001,3806.1,3805.9,0.002]
[1761179200919,0.001,3806.1,3806.0,0.4353]
[1761179201228,0.001,3806.1,3806.0,0.5665]
[1761179203125,0.001,3806.1,3805.9,0.002]
[1761179203126,2.62837881,3806.1,3805.9,0.002]
[1761179203434,2.62837881,3806.1,3805.9,0.1332]
[1761179205229,0.001,3806.1,3805.9,0.1332]
[1761179205413,0.001,3806.1,3805.9,0.5685]
[1761179205911,0.001,3806.1,3806.0,0.4353]
[1761179208241,0.001,3806.1,3805.9,0.1332]
[1761179208616,0.001,3806.1,3805.9,0.5685]
[1761179209322,0.001,3806.1,3805.9,0.1332]
[1761179209517,0.001,3806.1,3805.9,0.5685]
[1761179211733,3.358,3806.0,3805.9,0.5685]
[1761179214267,3.358,3806.0,3805.9,0.1332]
[1761179216072,3.358,3806.0,3805.9,0.5685]
[1761179216242,3.358,3806.0,3805.9,3.1959994]
[1761179218274,3.358,3806.0,3805.9,0.5685]
[1761179218475,3.358,3806.0,3805.9,3.1959994]
[1761179218976,0.001,3806.1,3805.9,3.1959994]
[1761179219186,0.001,3806.1,3806.0,0.4609]
[1761179219984,0.001,3806.1,3805.9,0.1332]
[1761179219985,2.62743037,3806.0,3805.9,0.002]
[1761179220154,5.41242404,3806.0,3805.9,0.002]
[1761179220354,5.31322404,3806.0,3805.9,0.002]
[1761179221460,6.96762404,3806.0,3805.9,0.002]
[1761179224779,6.60417697,3806.0,3805.9,0.002]
[1761179224984,7.96907205,3806.0,3805.9,0.002]
[1761179227088,7.86987205,3806.0,3805.9,0.002]
[1761179227794,7.96907205,3806.0,3805.9,0.002]
[1761179228927,0.001,3806.1,3805.9,0.4629]
[1761179229096,3.358,3806.1,3806.0,2.65370467]
[1761179229307,0.001,3806.1,3806.0,3.08833037]
[1761179229594,0.001,3806.5,3806.4,2.62715426]
[1761179229896,0.001,3806.5,3806.4,3.15259424]
[1761179230098,0.001,3806.5,3806.4,3.74469424]
[1761179234811,0.001,3806.5,3806.4,4.25157424]
[1761179241806,0.001,3806.5,3806.4,4.27784578]
[1761179242192,0.001,3806.5,3806.4,4.25157424]
[1761179244086,0.001,3806.5,3806.4,7.60657424]
[1761179247421,0.001,3806.5,3806.4,7.47537424]
[1761179251179,0.001,3806.5,3806.4,9.03057424]
[1761179255777,0.001,3806.5,3806.4,9.35895705]
[1761179257043,0.001,3806.5,3806.4,11.22644585]
[1761179257383,0.001,3806.5,3806.4,9.49015705]
[1761179260351,0.001,3806.5,3806.4,13.34015705]
[1761179261178,0.001,3807.8,3807.4,0.50688]
[1761179261381,0.001,3807.8,3807.7,4.91633732]
[1761179261684,0.001,3807.8,3807.7,6.32275742]
[1761179261884,0.001,3807.8,3807.7,6.78575742]
[1761179263373,0.001,3807.8,3807.7,5.37933732]
[1761179268091,0.001,3807.8,3807.7,4.68833732]
[1761179268387,0.001,3807.8,3807.7,6.31208642]
[1761179268850,0.001,3807.8,3807.7,6.77508642]
[1761179269279,0.001,3807.8,3807.7,5.80520642]
[1761179269478,0.001,3807.8,3807.7,6.31208642]
[1761179269853,0.001,3807.8,3807.7,6.77508642]
[1761179271152,0.001,3807.8,3807.7,6.90628642]
[1761179273159,0.001,3807.8,3807.7,6.44328642]
[1761179280580,0.001,3807.8,3807.7,6.90118642]
[1761179281123,0.001,3807.8,3807.7,8.30718963]
[1761179281327,0.001,3807.8,3807.7,6.90118642]
[1761179281683,0.001,3807.8,3807.7,8.30762368]
[1761179282214,0.001,3807.8,3807.7,6.90118642]
[1761179284936,0.001,3809.1,3809.0,3.13224098]
[1761179285119,0.001,3809.1,3809.0,6.94014098]
[1761179285303,0.001,3809.1,3809.0,7.07134098]
[1761179285683,0.001,3809.1,3809.0,6.61344098]
[1761179287086,0.001,3809.1,3809.0,7.07134098]
[1761179287310,0.001,3809.1,3809.0,8.1802423]
[1761179287907,0.001,3809.1,3809.0,7.7223423]
[1761179291532,0.001,3809.1,3809.0,0.1312]
[1761179291719,0.1006,3809.1,3807.8,4.75596351]
[1761179291918,0.1006,3809.1,3808.4,2.62571488]
[1761179292124,0.1006,3809.1,3808.5,2.62567463]
[1761179292322,0.27813631,3809.0,3808.5,2.62567463]
[1761179292623,0.1163,3808.6,3808.5,2.62567463]
[1761179292803,0.1163,3808.6,3808.2,5.97489267]
[1761179293005,0.0998,3808.5,3808.2,5.97489267]
[1761179293205,0.0998,3808.5,3808.4,2.62575382]
[1761179294334,0.1163,3808.6,3808.5,2.62570565]
[1761179294831,0.1163,3808.6,3808.5,3.9926316]
[1761179295036,0.001,3809.1,3809.0,2.62536098]
[1761179295905,0.1009,3809.1,3809.0,2.62536098]
[1761179296101,0.001,3809.1,3809.0,2.62536098]
[1761179296308,0.001,3809.1,3809.0,3.13224098]
[1761179296532,0.001,3809.1,3809.0,7.39191006]
[1761179301839,0.001,3809.1,3809.0,7.52311006]
[1761179308062,0.1009,3809.1,3809.0,6.61244098]
[1761179310431,0.1009,3809.1,3809.0,2.75656098]
[1761179310635,0.1009,3809.1,3809.0,0.1312]
[1761179314289,0.1009,3809.1,3809.0,2.75656098]
[1761179317275,0.001,3809.1,3809.0,2.75656098]
[1761179317947,0.1009,3809.1,3809.0,2.75656098]
[1761179318866,0.1009,3809.1,3809.0,0.1312]
[1761179325177,0.001,3809.1,3809.0,0.1312]
[1761179325569,0.1009,3809.1,3809.0,0.1312]
[1761179325868,0.001,3809.1,3809.0,0.1312]
[1761179327682,0.001,3809.1,3809.0,2.75656098]
[1761179328671,0.1009,3809.1,3809.0,0.1312]
[1761179329263,2.68176314,3809.1,3808.6,0.002]
[1761179329473,2.79676314,3808.7,3808.6,0.002]
[1761179330007,5.52243091,3808.7,3808.6,0.002]
[1761179336695,5.52343091,3808.7,3808.6,0.002]
[1761179337717,3.347,3808.7,3808.6,0.002]
[1761179338215,0.001,3808.7,3808.6,0.002]
[1761179338402,0.001,3808.7,3808.6,2.62763671]
[1761179338910,0.001,3808.7,3808.6,0.002]
[1761179339115,0.001,3808.7,3808.6,2.62763671]
[1761179339270,0.001,3808.7,3808.6,2.75883671]
[1761179339471,0.001,3808.7,3808.6,0.1332]
[1761179341084,0.001,3808.7,3808.6,3.37956683]
[1761179341395,0.001,3808.7,3808.6,8.78764683]
[1761179349212,0.001,3808.7,3808.6,8.28076683]
[1761179350737,0.001,3808.7,3808.6,8.78764683]
[1761179351209,0.001,3808.7,3808.6,8.91884683]
[1761179354610,0.001,3808.7,3808.6,8.49004683]
[1761179354952,0.001,3808.7,3808.6,8.91884683]
[1761179359756,0.001,3808.7,3808.6,8.91684683]
[1761179364645,0.001,3808.7,3808.6,8.48804683]
[1761179364954,0.001,3808.7,3808.6,6.42596683]
[1761179368766,0.001,3808.7,3808.6,6.10283671]
[1761179380302,0.001,3808.7,3808.6,6.53323671]
[1761179380691,0.001,3808.7,3808.6,7.04011671]
[1761179382305,0.001,3808.7,3808.6,8.44708022]
[1761179384236,0.001,3808.7,3808.6,4.54148022]
[1761179384426,0.001,3808.7,3808.6,3.13451671]
[1761179390353,0.001,3808.7,3808.6,4.22877485]
[1761179390953,0.001,3808.7,3808.6,0.002]
[1761179390954,0.1,3808.7,3808.6,0.002]
[1761179391149,0.1,3808.7,3808.6,2.62763671]
[1761179392663,0.001,3808.7,3808.6,2.62763671]
[1761179394263,0.001,3808.7,3808.6,2.75883671]
[1761179395561,0.001,3808.7,3808.6,3.69611671]
[1761179395729,0.001,3808.7,3808.6,4.37310147]
[1761179398773,0.001,3808.7,3808.6,4.82310147]
[1761179400772,0.001,3808.7,3808.6,4.84935783]
[1761179401068,0.001,3808.7,3808.6,4.82310147]
[1761179401475,0.001,3808.7,3808.6,4.37310147]
[1761179401637,0.001,3808.7,3808.6,4.6732069]
[1761179402062,0.001,3808.7,3808.6,3.26571671]
[1761179403082,0.001,3808.7,3808.6,4.6732069]
[1761179403394,0.001,3808.7,3808.6,5.1232069]
[1761179404473,0.001,3808.7,3808.6,4.6732069]
[1761179404674,0.001,3808.7,3808.6,5.78260433]
[1761179404873,0.001,3808.7,3808.6,4.82511414]
[1761179406584,0.001,3808.7,3808.6,5.78222355]
[1761179407954,0.001,3808.7,3808.6,4.82511414]
[1761179408572,0.001,3808.7,3808.6,4.8513705]
[1761179408795,0.001,3808.7,3808.6,4.82511414]
[1761179411054,0.001,3808.7,3808.6,4.37511414]
[1761179411258,0.001,3808.7,3808.6,8.01425599]
[1761179411674,0.001,3808.7,3808.6,8.46425599]
[1761179411875,0.001,3808.7,3808.6,6.92551671]
[1761179412187,0.001,3808.7,3808.6,7.05671671]
[1761179415066,0.001,3808.7,3808.6,6.60671671]
[1761179415267,0.001,3808.7,3808.6,8.93743013]
[1761179415873,0.1003,3808.7,3808.6,0.1332]
[1761179422114,0.001,3808.7,3808.6,0.1332]
[1761179422290,0.001,3808.7,3808.6,2.75883671]
[1761179423011,0.001,3808.7,3808.6,0.1332]
[1761179423516,0.1003,3808.7,3808.6,0.1332]
[1761179424117,0.1003,3808.7,3808.6,2.75883671]
[1761179425222,0.1003,3808.7,3808.6,0.1332]
[1761179426285,0.38441377,3808.7,3808.6,0.1332]
[1761179426888,0.1003,3808.7,3808.6,0.1332]
[1761179428116,0.88872901,3808.7,3808.6,0.1332]
[1761179431140,0.78942901,3808.7,3808.6,0.1332]
[1761179431306,0.001,3808.7,3808.6,0.1332]
[1761179431931,0.1003,3808.7,3808.6,0.1332]
[1761179432643,6.38493353,3808.7,3808.6,0.002]
[1761179432817,2.6257746,3808.4,3808.3,0.002]
[1761179433225,2.7250746,3808.4,3808.3,0.002]
[1761179433534,2.83021698,3808.4,3808.3,0.002]
[1761179433723,4.01430072,3808.4,3808.3,0.002]
[1761179434918,7.35430072,3808.4,3808.3,0.002]
[1761179440251,3.91500072,3808.4,3808.3,0.002]
[1761179440446,7.35430072,3808.4,3808.3,0.002]
[1761179441537,4.72852612,3808.4,3808.3,0.002]
[1761179441739,1.28922612,3808.4,3808.3,0.002]
[1761179441950,0.001,3808.7,3808.3,3.10214355]
[1761179442152,0.001,3808.7,3808.4,0.4743]
[1761179442348,0.001,3808.7,3808.6,2.62563671]
[1761179442755,0.001,3808.7,3808.6,2.75683671]
[1761179443321,0.001,3808.7,3808.6,4.35016414]
[1761179443540,0.001,3809.1,3809.0,2.62536098]
[1761179443741,0.001,3809.1,3809.0,2.78281458]
[1761179444025,0.001,3809.1,3809.0,6.57086098]
[1761179444223,0.001,3809.1,3809.0,5.96536098]
[1761179444564,0.001,3809.1,3809.0,7.53758679]
[1761179445055,0.001,3809.1,3809.0,8.04446679]
[1761179447272,0.001,3809.1,3809.0,9.59966679]
[1761179447764,0.08281911,3810.4,3810.1,2.62460302]
[1761179447965,0.001,3810.5,3809.3,0.50688]
[1761179448175,0.001,3810.5,3810.3,2.62446526]
[1761179449470,0.001,3810.5,3810.1,2.85369898]
[1761179449681,0.001,3810.5,3810.4,2.62439638]
[1761179450763,0.001,3810.5,3810.3,2.62446028]
[1761179451403,0.001,3810.5,3809.7,2.62481905]
[1761179451404,0.001,3810.5,3809.7,0.50688]
[1761179451601,0.001,3810.5,3810.1,2.62459058]
[1761179451803,0.001,3810.5,3810.2,2.62448909]
[1761179452405,0.001,3810.5,3810.3,2.6244514]
[1761179452564,0.001,3810.5,3810.4,3.09869638]
[1761179453007,0.001,3810.5,3810.4,2.62439638]
[1761179453802,0.1001,3810.5,3810.1,2.62455353]
[1761179453994,0.1001,3810.5,3810.0,2.62465614]
[1761179454501,0.1001,3810.5,3809.9,0.50688]
[1761179454502,0.1001,3810.5,3810.4,0.1312]
[1761179454680,0.001,3810.5,3810.4,0.1312]
[1761179454881,0.1001,3810.5,3810.4,0.1312]
[1761179455473,0.001,3810.5,3810.4,0.1312]
[1761179458085,0.001,3810.5,3810.4,2.75559638]
[1761179459198,0.001,3810.5,3810.4,0.1312]
[1761179459995,0.001,3810.5,3810.4,2.75559638]
[1761179460697,0.001,3810.5,3810.4,3.22369638]
[1761179464499,0.001,3810.5,3810.4,3.80851753]
[1761179464799,0.001,3810.5,3810.4,2.75559638]
[1761179464997,0.001,3810.5,3810.4,0.1312]
[1761179465299,0.001,3810.5,3810.4,2.75559638]
[1761179467407,0.001,3810.5,3809.3,0.1050645]
[1761179467576,2.67998408,3810.4,3810.0,2.62465861]
[1761179467780,0.001,3810.5,3810.1,2.62454191]
[1761179468112,0.001,3810.5,3810.3,2.62445612]
[1761179468486,0.001,3810.5,3810.4,2.62439638]
[1761179470113,0.001,3810.5,3810.4,2.62639638]
[1761179470815,0.001,3810.5,3810.4,0.002]
[1761179471913,0.001,3810.5,3810.4,2.62639638]
[1761179474444,0.001,3810.5,3810.4,7.53652007]
[1761179474619,0.001,3810.5,3810.4,7.51027611]
[1761179475937,0.001,3810.5,3810.4,5.96339638]
[1761179477335,0.001,3810.5,3810.4,6.93837638]
[1761179477538,0.001,3810.5,3810.4,6.60147638]
[1761179477738,0.001,3810.5,3810.4,2.75759638]
[1761179480652,0.001,3810.5,3810.4,3.75882034]
[1761179480856,0.001,3810.5,3810.4,4.87148146]
[1761179481355,0.001,3810.5,3810.4,4.3771375]
[1761179481529,0.001,3810.5,3810.4,4.8452375]
[1761179483857,0.001,3810.5,3810.4,4.87148146]
[1761179484234,0.001,3810.5,3810.4,4.8452375]
[1761179487156,0.001,3810.5,3810.4,6.27874647]
[1761179487359,0.001,3810.5,3810.4,6.25250251]
[1761179490481,0.001,3810.5,3810.4,7.80770251]
[1761179490669,0.001,3810.5,3810.4,6.4004375]
[1761179491906,0.001,3810.5,3810.4,5.9323375]
[1761179492187,0.001,3810.5,3810.4,7.81126939]
[1761179492578,0.001,3810.5,3810.4,6.4044375]
[1761179492976,0.001,3810.5,3810.4,7.81125391]
[1761179493993,0.001,3810.5,3810.4,6.4044375]
[1761179496089,0.001,3810.5,3810.4,6.2732375]
[1761179496273,0.001,3810.5,3810.4,8.28038885]
[1761179497110,0.001,3810.5,3810.4,6.4044375]
[1761179497312,0.001,3811.3,3810.4,6.4044375]
[1761179497313,0.10502091,3812.7,3812.0,2.62329485]
[1761179497608,0.1148,3813.8,3812.4,4.68509962]
[1761179497797,0.21769087,3814.1,3812.4,8.02009962]
[1761179497993,0.1127,3814.1,3812.4,10.47849274]
[1761179498177,0.1127,3814.1,3814.0,2.62191924]
[1761179498376,0.1127,3814.1,3813.8,2.62205457]
[1761179498377,0.1127,3814.1,3813.9,2.6219819]
[1761179498577,0.2128,3814.1,3813.9,2.62198799]
[1761179498773,0.2128,3814.1,3813.8,3.335]
[1761179498774,0.1126,3814.4,3813.8,3.335]
[1761179498991,0.1126,3814.4,3814.3,2.62171302]
[1761179499200,1.6684,3815.1,3814.7,2.62143812]
[1761179499201,0.1132,3815.1,3814.7,2.62143812]
[1761179499415,0.2136,3815.1,3814.4,3.335]
[1761179499586,0.2136,3815.1,3814.4,5.95663461]
[1761179499914,0.1004,3815.0,3814.5,2.62156763]
[1761179500094,0.1004,3815.0,3814.4,5.95663874]
[1761179500290,0.1004,3815.0,3814.2,3.335]
[1761179500291,2.31514964,3814.7,3814.2,3.335]
[1761179500620,2.41554964,3815.0,3814.2,3.335]
[1761179500785,2.62146719,3814.7,3814.2,3.335]
[1761179501176,2.72194821,3814.6,3814.2,3.335]
[1761179501407,2.62158102,3814.5,3814.2,3.335]
[1761179501608,0.1004,3814.5,3814.2,3.335]
[1761179502208,0.1132,3815.1,3814.2,3.335]
[1761179502405,2.73437226,3815.1,3814.2,3.335]
[1761179502611,0.37383723,3815.0,3814.2,3.335]
[1761179502789,2.62130218,3814.9,3814.2,3.335]
[1761179502990,2.72170219,3814.9,3814.2,3.335]
[1761179503192,0.1004,3814.8,3814.2,3.335]
[1761179503698,0.1004,3814.8,3813.8,0.50688]
[1761179504008,0.1004,3814.8,3812.4,2.62300285]
[1761179504009,2.62226758,3813.5,3812.4,2.62300285]
[1761179504335,2.62220055,3813.6,3812.6,2.6228785]
[1761179504633,0.49373502,3813.5,3812.7,0.50688]
[1761179504932,0.49373502,3813.5,3812.7,2.6228093]
[1761179505234,0.49373502,3813.5,3812.6,2.62281631]
[1761179505407,0.49373502,3813.5,3812.8,0.50688]
[1761179505808,0.59423502,3813.5,3812.8,0.50688]
[1761179506209,3.21649936,3813.5,3812.6,0.50688]
[1761179506426,0.1005,3813.5,3812.6,0.50688]
[1761179506739,2.72258071,3813.8,3812.6,0.97898]
[1761179507052,0.1005,3813.7,3812.7,0.50688]
[1761179507338,2.6222524,3813.6,3812.7,3.12968515]
[1761179507839,2.6222524,3813.6,3813.5,0.1312]
[1761179508036,2.72264848,3813.7,3813.5,0.1312]
[1761179508234,0.1005,3813.7,3813.5,0.1312]
[1761179508435,0.35997407,3813.6,3813.5,0.1312]
[1761179508603,2.72269425,3813.6,3813.5,0.1312]
[1761179510314,2.62228243,3813.5,3813.4,0.1312]
[1761179510639,2.72278243,3813.5,3813.4,0.1312]
[1761179511172,2.62247645,3813.2,3812.5,3.334]
[1761179511538,0.2182,3813.1,3812.3,0.50688]
[1761179511961,0.2182,3813.1,3813.0,0.1312]
[1761179512339,2.84073809,3813.1,3813.0,0.1312]
[1761179512558,3.44049555,3813.1,3813.0,0.1312]
[1761179513568,0.59975746,3813.1,3813.0,0.1312]
[1761179513770,6.05427214,3813.5,3813.0,0.1312]
[1761179514082,0.099,3813.4,3813.0,0.1312]
[1761179514245,0.099,3813.4,3812.4,3.09511704]
[1761179514246,2.62241151,3813.3,3813.2,0.1312]
[1761179514638,2.72141151,3813.3,3813.2,0.1312]
[1761179515450,2.62241151,3813.3,3813.2,0.1312]
[1761179515965,2.72141151,3813.3,3813.2,0.1312]
[1761179516363,3.13418336,3813.4,3813.2,0.1312]
[1761179516578,0.51184,3813.4,3813.2,0.1312]
[1761179516738,1.6698,3813.9,3813.2,0.1312]
[1761179516739,6.06964281,3813.9,3813.2,0.1312]
[1761179517088,6.06964281,3813.9,3813.2,0.6033]
[1761179517243,6.06964281,3813.9,3813.2,0.4721]
[1761179517448,6.73371709,3813.9,3813.7,0.1312]
[1761179517644,6.73368622,3813.9,3813.7,0.1312]
[1761179517845,2.62233836,3813.4,3812.2,0.50688]
[1761179518074,5.95533836,3813.4,3813.3,0.1312]
[1761179518235,3.85744639,3813.4,3813.3,0.1312]
[1761179518458,3.95644639,3813.4,3813.3,0.1312]
[1761179519285,3.95644639,3813.4,3812.5,2.62294836]
[1761179519286,6.57877816,3813.4,3812.5,2.62294836]
[1761179519484,1.01910578,3813.3,3813.2,0.1312]
[1761179519790,3.64150632,3813.3,3813.2,0.1312]
[1761179521193,2.62268464,3812.9,3812.5,0.002]
[1761179521391,2.62268464,3812.9,3812.8,0.1312]
[1761179521685,3.37530784,3812.9,3812.8,0.1312]
[1761179521885,2.62288202,3812.6,3812.5,0.002]
[1761179522304,2.72188202,3812.6,3812.5,0.002]
[1761179524771,4.27708202,3812.6,3812.5,0.002]
[1761179525071,5.40160782,3812.6,3812.5,0.002]
[1761179526668,7.71513856,3812.6,3812.5,0.002]
[1761179527171,11.04913856,3812.6,3812.5,0.002]
[1761179528576,11.18033856,3812.6,3812.5,0.002]
[1761179529071,11.18033856,3812.6,3812.1,0.002]
[1761179529072,2.62315723,3812.2,3812.1,0.002]
[1761179529274,9.95708797,3812.2,3812.1,0.002]
[1761179529494,10.05608797,3812.2,3812.1,0.002]
[1761179529897,12.36961871,3812.2,3812.1,0.002]
[1761179530699,10.42098139,3812.2,3812.1,0.002]
[1761179531001,11.86473125,3812.2,3812.1,0.002]
[1761179532792,8.39953125,3812.2,3812.1,0.002]
[1761179533104,11.86473125,3812.2,3812.1,0.002]
[1761179535012,11.99593125,3812.2,3812.1,0.002]
[1761179539904,9.21850709,3812.2,3812.1,0.002]
[1761179540083,11.99593125,3812.2,3812.1,0.002]
[1761179545116,2.62343249,3811.8,3811.7,0.002]
[1761179545310,2.62370782,3811.4,3811.3,0.002]
[1761179545511,10.32353198,3811.4,3811.3,0.002]
[1761179545704,10.64593198,3811.4,3811.3,0.002]
[1761179545906,12.10408737,3811.4,3811.3,0.002]
[1761179548311,10.41768737,3811.4,3811.3,0.002]
[1761179551391,11.97288737,3811.4,3811.3,0.002]
[1761179554626,2.62432751,3810.5,3810.4,0.002]
[1761179554925,8.63775167,3810.5,3810.4,0.002]
[1761179557327,10.19295167,3810.5,3810.4,0.002]
[1761179559317,10.29195167,3810.5,3810.4,0.002]
[1761179561020,10.19295167,3810.5,3810.4,0.002]
[1761179561217,11.47467091,3810.5,3810.4,0.002]
[1761179562330,8.79624675,3810.5,3810.4,0.002]
[1761179562525,11.47467091,3810.5,3810.4,0.002]
[1761179564714,11.60587091,3810.5,3810.4,0.002]
[1761179565941,11.70487091,3810.5,3810.4,0.002]
[1761179566124,8.36987091,3810.5,3810.4,0.002]
[1761179566439,8.36987091,3810.5,3810.0,0.002]
[1761179566440,4.17980302,3810.1,3810.0,0.002]
[1761179566632,10.32542718,3810.1,3810.0,0.002]
[1761179570053,10.32542718,3810.1,3809.6,0.002]
[1761179570054,4.18007859,3809.7,3809.6,0.002]
[1761179570258,10.32570275,3809.7,3809.6,0.002]
[1761179570439,11.85450207,3809.7,3809.6,0.002]
[1761179574731,11.64200207,3809.7,3809.6,0.002]
[1761179576155,11.85450207,3809.7,3809.6,0.002]
[1761179577837,11.85450207,3809.7,3809.2,0.002]
[1761179577838,2.62515422,3809.3,3809.2,0.002]
[1761179578039,9.0332938,3809.3,3809.2,0.002]
[1761179580580,10.5884938,3809.3,3809.2,0.002]
[1761179580883,10.6874938,3809.3,3809.2,0.002]
[1761179581386,10.5884938,3809.3,3809.2,0.002]
[1761179582581,6.44,3809.6,3809.2,0.4574]
[1761179582784,0.001,3810.0,3809.2,0.4574]
[1761179582981,3.337,3809.9,3809.3,2.62515422]
[1761179583183,3.337,3809.9,3809.4,2.62506996]
[1761179583379,3.337,3809.9,3809.4,3.08046996]
[1761179583553,3.337,3809.9,3809.5,0.4554]
[1761179583953,5.96176158,3809.9,3809.5,0.4554]
[1761179584160,3.337,3809.9,3809.5,0.4554]
[1761179584380,0.001,3810.0,3809.5,0.4554]
[1761179584583,0.001,3810.0,3809.5,3.08035836]
[1761179584584,3.337,3809.9,3809.5,3.08035836]
[1761179585083,3.337,3809.9,3809.6,0.4554]
[1761179585884,5.96174494,3809.9,3809.6,0.4554]
[1761179586252,3.337,3809.9,3809.6,0.4554]
[1761179587570,5.96174465,3809.9,3809.6,0.4554]
[1761179588689,3.337,3809.9,3809.6,0.4554]
[1761179589995,0.001,3810.0,3809.6,0.4554]
[1761179590170,0.001,3810.0,3809.9,2.6247408]
[1761179590368,3.337,3810.0,3809.9,0.57050194]
[1761179590681,3.337,3810.0,3809.9,0.4554]
[1761179591079,3.337,3810.0,3809.9,3.0801408]
[1761179591285,3.337,3810.0,3809.9,0.4554]
[1761179592688,3.337,3810.0,3809.9,0.5866]
[1761179592892,3.337,3810.0,3809.9,3.2113408]
[1761179593469,0.001,3810.0,3809.9,3.2113408]
[1761179593669,0.001,3810.0,3809.9,3.79516043]
[1761179594496,0.001,3810.0,3809.9,3.2113408]
[1761179597708,0.001,3810.0,3809.9,5.2734208]
[1761179599481,1e-08,3810.4,3810.3,3.36054526]
[1761179599683,1e-08,3810.4,3810.3,8.27798991]
[1761179599883,1e-08,3810.4,3810.3,10.23964694]
[1761179600092,1e-08,3810.4,3810.3,10.13753946]
[1761179601636,1e-08,3810.4,3810.3,11.53884114]
[1761179601779,1e-08,3810.4,3810.3,10.47862507]
[1761179603308,1e-08,3810.4,3810.3,11.53307374]
[1761179603694,1e-08,3810.4,3810.3,10.13753946]
[1761179604080,1e-08,3810.4,3810.3,11.53251194]
[1761179605131,1e-08,3810.4,3810.3,13.98753946]
[1761179605436,1e-08,3810.4,3810.3,15.38251194]
[1761179606089,1e-08,3810.4,3810.3,13.98753946]
[1761179607397,1e-08,3810.4,3810.3,13.48065946]
[1761179607821,1e-08,3810.4,3810.3,13.98753946]
[1761179608303,1e-08,3810.4,3810.3,13.48065946]
[1761179608498,1e-08,3810.4,3810.3,13.98753946]
[1761179608929,1e-08,3810.4,3810.3,14.09257361]
[1761179610724,1e-08,3810.4,3810.3,13.96137361]
[1761179611223,1e-08,3810.4,3810.3,10.11137361]
[1761179612925,1e-08,3810.4,3810.3,10.11337361]
[1761179617121,1e-08,3810.4,3810.3,14.30445922]
[1761179619023,1e-08,3810.4,3810.3,15.6994317]
[1761179620135,1e-08,3810.4,3810.3,14.30445922]
[1761179620640,1e-08,3810.4,3810.3,14.43565922]
[1761179621431,0.001,3811.2,3811.1,3.35119435]
[1761179621432,1e-08,3811.2,3811.1,3.35119435]
[1761179621634,1e-08,3811.2,3811.1,8.69169435]
[1761179621816,1e-08,3811.2,3811.1,9.03277996]
[1761179622136,1e-08,3811.2,3811.1,10.49060922]
[1761179625534,1e-08,3811.2,3811.1,12.36210234]
[1761179627144,1e-08,3811.2,3811.1,10.49060922]
[1761179627714,0.001,3812.9,3812.4,3.12989962]
[1761179627937,0.001,3812.9,3812.4,8.61963048]
[1761179628237,0.001,3812.9,3812.4,9.04470029]
[1761179628443,0.001,3812.9,3812.4,8.59340029]
[1761179628622,0.001,3812.9,3812.4,8.6983851]
[1761179628821,0.1144,3812.9,3812.4,8.6983851]
[1761179629339,0.001,3812.9,3812.4,9.1496851]
[1761179630308,0.001,3812.9,3812.4,8.6983851]
[1761179631508,0.001,3812.9,3812.4,8.8295851]
[1761179631906,0.001,3812.9,3812.4,9.2808851]
[1761179633626,0.1144,3812.9,3812.4,8.8295851]
[1761179633827,0.2138,3812.9,3812.4,8.8295851]
[1761179635023,0.0994,3812.7,3812.4,8.8295851]
[1761179635339,0.0994,3812.7,3812.4,8.25428443]
[1761179635915,0.1144,3812.9,3812.4,8.25428443]
[1761179638150,0.0994,3812.8,3812.4,8.25428443]
[1761179638652,0.1144,3812.9,3812.4,8.71748443]
[1761179640135,0.001,3812.9,3812.4,8.71748443]
[1761179641849,0.001,3812.9,3812.4,8.25428443]